bitfinex/quotes_BTCUSD_20250716
["timestamp","ask_amount","ask_price","bid_price","bid_amount"]
[1752646071533,0.6167533,117940.0,117930.0,0.27065834]
[1752646071758,0.6167533,117940.0,117930.0,0.29633788]
[1752646072357,0.62523211,117940.0,117930.0,0.29633788]
[1752646072767,0.62523275,117940.0,117930.0,0.29633788]
[1752646073010,0.61675387,117940.0,117930.0,0.29633788]
[1752646073207,0.60827506,117940.0,117930.0,0.29633788]
[1752646073954,0.61675387,117940.0,117930.0,0.29633788]
[1752646074160,0.78633162,117940.0,117930.0,0.29633788]
[1752646074399,0.78633162,117940.0,117930.0,0.27937961]
[1752646074685,0.77785324,117940.0,117930.0,0.27937961]
[1752646076619,0.77785324,117940.0,117930.0,0.25370007]
[1752646079649,0.76937472,117940.0,117930.0,0.24522083]
[1752646080626,0.76937472,117940.0,117930.0,0.28935261]
[1752646080739,0.76937472,117940.0,117930.0,0.29783185]
[1752646080939,0.76937472,117940.0,117930.0,0.25370007]
[1752646081425,0.76937472,117940.0,117930.0,0.25366007]
[1752646082080,0.76937472,117940.0,117930.0,0.24518083]
[1752646084286,0.76089598,117940.0,117930.0,0.24518112]
[1752646084517,0.75241717,117940.0,117930.0,0.23670173]
[1752646084646,0.75241717,117940.0,117930.0,0.24518126]
[1752646085078,0.61853717,117940.0,117930.0,0.05863]
[1752646085298,0.75237717,117940.0,117930.0,0.04068]
[1752646085526,0.83842745,117940.0,117930.0,0.02236]
[1752646087849,0.85362745,117940.0,117930.0,0.02236]
[1752646088441,0.83842745,117940.0,117930.0,0.02236]
[1752646090770,0.38946803,117940.0,117930.0,0.02236]
[1752646090945,0.83842745,117940.0,117930.0,0.02236]
[1752646094498,0.83842745,117940.0,117930.0,0.02556]
[1752646096385,0.38946803,117940.0,117930.0,0.02556]
[1752646096594,0.83842745,117940.0,117930.0,0.05004265]
[1752646096715,0.83842745,117940.0,117930.0,0.02556]
[1752646099510,0.83842745,117940.0,117930.0,0.02236]
[1752646101447,0.38946803,117940.0,117930.0,0.02236]
[1752646101676,0.83842745,117940.0,117930.0,0.02236]
[1752646102339,0.38946803,117940.0,117930.0,0.04759066]
[1752646102517,0.83842745,117940.0,117930.0,0.05079066]
[1752646102920,0.83842745,117940.0,117930.0,0.02556]
[1752646104249,0.83842745,117940.0,117930.0,0.04076]
[1752646104755,0.83842745,117940.0,117930.0,0.02556]
[1752646105694,0.83842745,117940.0,117930.0,0.02236]
[1752646111723,0.38946803,117940.0,117930.0,0.02236]
[1752646111936,0.83842745,117940.0,117930.0,0.06859672]
[1752646112141,0.83842745,117940.0,117930.0,0.08608672]
[1752646112352,0.5344697,117940.0,117930.0,0.26415838]
[1752646112549,0.42248277,117940.0,117930.0,0.28111694]
[1752646112795,0.24442564,117940.0,117930.0,0.28959604]
[1752646113008,0.25290431,117940.0,117930.0,0.28959604]
[1752646113248,0.23594697,117940.0,117930.0,0.28959604]
[1752646113454,0.15043662,117940.0,117930.0,0.28959604]
[1752646114222,0.14199824,117940.0,117930.0,0.28959604]
[1752646114422,0.14199831,117940.0,117930.0,0.28959604]
[1752646116116,0.13352,117940.0,117930.0,0.28959604]
[1752646116333,0.14199831,117940.0,117930.0,0.28959604]
[1752646116554,0.14199824,117940.0,117930.0,0.28959604]
[1752646118744,0.15047662,117940.0,117930.0,0.28959604]
[1752646119023,0.14199824,117940.0,117930.0,0.28959604]
[1752646121066,0.14166078,117940.0,117930.0,0.28959604]
[1752646121488,0.15013916,117940.0,117930.0,0.28959604]
[1752646122823,0.14166078,117940.0,117930.0,0.28959604]
[1752646124015,0.13318254,117940.0,117930.0,0.28959604]
[1752646124554,0.14166078,117940.0,117930.0,0.28959604]
[1752646125814,0.15013909,117940.0,117930.0,0.28959604]
[1752646126894,0.15861761,117940.0,117930.0,0.28959604]
[1752646127462,0.16709621,117940.0,117930.0,0.28959604]
[1752646127732,0.79411269,117940.0,117930.0,0.28959604]
[1752646127990,0.79411326,117940.0,117930.0,0.28959604]
[1752646128263,0.77715614,117940.0,117930.0,0.25567885]
[1752646128551,0.77715614,117940.0,117930.0,0.28111715]
[1752646128815,0.77715614,117940.0,117930.0,0.28959639]
[1752646129414,0.77769614,117940.0,117930.0,0.25896845]
[1752646129660,0.85472768,117940.0,117930.0,0.02236]
[1752646129878,0.87082768,117940.0,117930.0,0.02236]
[1752646132045,0.85472768,117940.0,117930.0,0.02546]
[1752646137925,0.85472768,117940.0,117930.0,0.02236]
[1752646139892,0.87092768,117940.0,117930.0,0.02236]
[1752646140655,0.85472768,117940.0,117930.0,0.02236]
[1752646143545,0.85472768,117940.0,117930.0,0.02546]
[1752646144354,0.85472768,117940.0,117930.0,0.02236]
[1752646149026,1.07955532,117940.0,117930.0,0.02236]
[1752646149940,1.07955532,117940.0,117930.0,0.04680868]
[1752646151523,1.07955532,117940.0,117930.0,0.04973868]
[1752646152001,1.07955532,117940.0,117930.0,0.26168041]
[1752646152206,1.06205763,117940.0,117930.0,0.26168041]
[1752646152840,0.7251641,117940.0,117930.0,0.27015994]
[1752646153306,0.7251641,117940.0,117930.0,0.08360868]
[1752646153505,0.7251641,117940.0,117930.0,0.25320081]
[1752646154028,0.7251641,117940.0,117930.0,0.08360868]
[1752646154468,0.7251641,117940.0,117930.0,0.25320081]
[1752646154766,0.7251641,117940.0,117930.0,0.22875213]
[1752646156088,0.7251641,117940.0,117930.0,0.05916]
[1752646156306,1.06205763,117940.0,117930.0,0.05916]
[1752646156542,0.38827057,117940.0,117930.0,0.05916]
[1752646156757,1.06205763,117940.0,117930.0,0.22875213]
[1752646156970,1.06205763,117940.0,117930.0,0.23723173]
[1752646157615,1.06205763,117940.0,117930.0,0.24571126]
[1752646158809,0.7251641,117940.0,117930.0,0.23723173]
[1752646159061,0.7251641,117940.0,117930.0,0.28049944]
[1752646159271,1.06205763,117940.0,117930.0,0.28049944]
[1752646159482,1.06205763,117940.0,117930.0,0.10242771]
[1752646161001,1.06205763,117940.0,117930.0,0.27201984]
[1752646161434,1.06205763,117940.0,117930.0,0.10242771]
[1752646162290,1.06259763,117940.0,117930.0,0.04326]
[1752646166209,1.06259763,117940.0,117930.0,0.02529]
[1752646166405,1.06259763,117940.0,117930.0,0.02236]
[1752646166837,1.06259763,117940.0,117930.0,0.02529]
[1752646168603,1.06259763,117940.0,117930.0,0.04159]
[1752646168933,1.06205763,117940.0,117930.0,0.08589956]
[1752646172725,1.06205763,117940.0,117930.0,0.05886]
[1752646176648,0.92887509,117940.0,117930.0,0.05886]
[1752646176851,1.06167509,117940.0,117930.0,0.05886]
[1752646183579,1.06167509,117940.0,117930.0,0.22845213]
[1752646186249,1.06167509,117940.0,117930.0,0.23693173]
[1752646186429,1.06167509,117940.0,117930.0,0.28101741]
[1752646186654,0.14127874,117940.0,117930.0,0.30645528]
[1752646187070,0.52788414,117950.0,117940.0,0.2181353]
[1752646187316,0.00847766,117950.0,117940.0,0.23224325]
[1752646187498,0.35384899,117950.0,117940.0,0.23224325]
[1752646187737,0.36232694,117950.0,117940.0,0.2828473]
[1752646187931,0.49492694,117950.0,117940.0,0.2828473]
[1752646188402,0.49492694,117950.0,117940.0,0.2838473]
[1752646188403,0.51188305,117950.0,117940.0,0.2838473]
[1752646188538,0.51188305,117950.0,117940.0,0.28384744]
[1752646188737,0.51188355,117950.0,117940.0,0.28384744]
[1752646189068,0.51188355,117950.0,117940.0,0.27536935]
[1752646189069,0.67296912,117950.0,117940.0,0.27536935]
[1752646189302,0.67296912,117950.0,117940.0,0.28484795]
[1752646190343,0.33607559,117950.0,117940.0,0.28484795]
[1752646190553,0.67296912,117950.0,117940.0,0.28484795]
[1752646191743,0.6698185,117950.0,117940.0,0.28484795]
[1752646191934,0.6698185,117950.0,117940.0,0.27636935]
[1752646192767,0.6698185,117950.0,117940.0,0.27636949]
[1752646192768,0.66134048,117950.0,117940.0,0.27636949]
[1752646192992,0.66134048,117950.0,117940.0,0.28484823]
[1752646194604,0.65286239,117950.0,117940.0,0.23424418]
[1752646197067,0.30176337,117950.0,117940.0,0.22416516]
[1752646197268,0.6386569,117950.0,117940.0,0.21568649]
[1752646197474,0.6386169,117950.0,117940.0,0.21568649]
[1752646197937,0.6386169,117950.0,117940.0,0.22416516]
[1752646198314,0.6386169,117950.0,117940.0,0.28133664]
[1752646198477,0.6386169,117950.0,117940.0,0.26437923]
[1752646198676,0.6386169,117950.0,117940.0,0.27285804]
[1752646199370,0.6386169,117950.0,117940.0,0.28133678]
[1752646199771,0.64451551,117950.0,117940.0,0.28133678]
[1752646199913,0.64451551,117950.0,117940.0,0.27285804]
[1752646201170,0.64451551,117950.0,117940.0,0.21568656]
[1752646202644,0.64451551,117950.0,117940.0,0.22416523]
[1752646203354,0.64451551,117950.0,117940.0,0.21568656]
[1752646204938,0.64451551,117950.0,117940.0,0.22416523]
[1752646205446,0.30762198,117950.0,117940.0,0.22416523]
[1752646205665,0.64451551,117950.0,117940.0,0.23264383]
[1752646207169,0.64451551,117950.0,117940.0,0.22416523]
[1752646207407,0.64451551,117950.0,117940.0,0.23264383]
[1752646209057,0.6386169,117950.0,117940.0,0.23264383]
[1752646209776,0.64709492,117950.0,117940.0,0.24112235]
[1752646210801,0.64709492,117950.0,117940.0,0.2982697]
[1752646211058,0.48600892,117950.0,117940.0,0.30674808]
[1752646211263,0.49448694,117950.0,117940.0,0.30674808]
[1752646212007,0.50296503,117950.0,117940.0,0.30674808]
[1752646212903,0.49448694,117950.0,117940.0,0.30674808]
[1752646214920,0.50296503,117950.0,117940.0,0.30674808]
[1752646216604,0.6725284,117950.0,117940.0,0.30674808]
[1752646217022,0.68100656,117950.0,117940.0,0.30674808]
[1752646217313,0.67252897,117950.0,117940.0,0.2982697]
[1752646217728,0.67252897,117950.0,117940.0,0.28979118]
[1752646217925,0.66405117,117950.0,117940.0,0.23264383]
[1752646218153,0.65557315,117950.0,117940.0,0.21568656]
[1752646218375,0.65557315,117950.0,117940.0,0.2241653]
[1752646218836,0.65557315,117950.0,117940.0,0.23264397]
[1752646219017,0.64709506,117950.0,117940.0,0.2241653]
[1752646219224,0.64709506,117950.0,117940.0,0.23264397]
[1752646220579,0.64709506,117950.0,117940.0,0.24112257]
[1752646222411,0.64709506,117950.0,117940.0,0.24960109]
[1752646222621,0.49448723,117950.0,117940.0,0.30674803]
[1752646223358,0.67252869,117950.0,117940.0,0.30674803]
[1752646223763,0.68100685,117950.0,117940.0,0.30674803]
[1752646225920,0.51144348,117950.0,117940.0,0.30674803]
[1752646226071,0.68100685,117950.0,117940.0,0.30674803]
[1752646227075,0.67252912,117950.0,117940.0,0.23264376]
[1752646229791,0.67164912,117950.0,117940.0,0.23264376]
[1752646230443,0.33475559,117950.0,117940.0,0.24112221]
[1752646230666,0.14823597,117950.0,117940.0,0.24960059]
[1752646230961,0.66317096,117950.0,117940.0,0.24112221]
[1752646232263,0.66317096,117950.0,117940.0,0.29742164]
[1752646234077,0.66317096,117950.0,117940.0,0.23264376]
[1752646234495,0.66317096,117950.0,117940.0,0.22416516]
[1752646234679,0.64621499,117950.0,117940.0,0.21568649]
[1752646234897,0.64621499,117950.0,117940.0,0.22416516]
[1752646236209,0.64621499,117950.0,117940.0,0.20720775]
[1752646236412,0.64621499,117950.0,117940.0,0.22416544]
[1752646236733,0.64621499,117950.0,117940.0,0.23264418]
[1752646236951,0.98310852,117950.0,117940.0,0.03763]
[1752646237185,1.05931344,117950.0,117940.0,0.002]
[1752646237390,0.99067043,117950.0,117940.0,0.002]
[1752646237800,0.6382769,117950.0,117940.0,0.002]
[1752646238007,0.6382769,117950.0,117940.0,0.00504]
[1752646242517,0.6382769,117950.0,117940.0,0.17461775]
[1752646242722,0.6382769,117950.0,117940.0,0.00504]
[1752646243395,0.6382769,117950.0,117940.0,0.20071656]
[1752646243657,0.47631362,117950.0,117940.0,0.25976497]
[1752646243885,0.65435515,117950.0,117940.0,0.27672238]
[1752646244072,0.64587763,117950.0,117940.0,0.27672238]
[1752646246740,0.30050594,117950.0,117940.0,0.27672238]
[1752646246965,0.30898403,117950.0,117940.0,0.27672238]
[1752646247186,0.64587756,117950.0,117940.0,0.27672238]
[1752646247752,0.30898403,117950.0,117940.0,0.27672238]
[1752646247972,0.64587756,117950.0,117940.0,0.27672238]
[1752646248999,0.64587756,117950.0,117940.0,0.28520098]
[1752646250062,0.00847752,117950.0,117940.0,0.63057289]
[1752646250313,8.545e-05,117960.0,117950.0,0.23497487]
[1752646250526,8.545e-05,117960.0,117950.0,0.62250972]
[1752646250743,8.545e-05,117960.0,117950.0,0.62764972]
[1752646251660,8.545e-05,117960.0,117950.0,0.62864972]
[1752646251910,8.545e-05,117960.0,117950.0,0.62964972]
[1752646252118,0.00856225,117960.0,117950.0,0.62964972]
[1752646252383,0.01703919,117960.0,117950.0,0.62964972]
[1752646252606,0.02551628,117960.0,117950.0,0.29275619]
[1752646253908,0.0255162,117960.0,117950.0,0.29275619]
[1752646254120,0.01703919,117960.0,117950.0,0.29275619]
[1752646255285,0.02551628,117960.0,117950.0,0.29275619]
[1752646255500,0.01703919,117960.0,117950.0,0.29275619]
[1752646255788,0.00856225,117960.0,117950.0,0.29275619]
[1752646256488,0.01703912,117960.0,117950.0,0.29275619]
[1752646257432,0.02551606,117960.0,117950.0,0.29275619]
[1752646259478,0.03399315,117960.0,117950.0,0.29275619]
[1752646259690,0.03399307,117960.0,117950.0,0.29275619]
[1752646262717,0.01703912,117960.0,117950.0,0.29275619]
[1752646265158,0.01703912,117960.0,117950.0,0.62964972]
[1752646265626,0.02551613,117960.0,117950.0,0.62964972]
[1752646265824,0.01703912,117960.0,117950.0,0.62964972]
[1752646266251,8.545e-05,117960.0,117950.0,0.62964972]
[1752646271517,8.545e-05,117960.0,117950.0,0.29275619]
[1752646271698,8.545e-05,117960.0,117950.0,0.62964972]
[1752646277273,8.545e-05,117960.0,117950.0,0.71516]
[1752646280187,8.545e-05,117960.0,117950.0,0.74105112]
[1752646280931,8.545e-05,117960.0,117950.0,0.87233112]
[1752646282577,8.545e-05,117960.0,117950.0,1.16583112]
[1752646297093,8.545e-05,117960.0,117950.0,0.82893759]
[1752646297262,8.545e-05,117960.0,117950.0,1.16583112]
[1752646299046,8.545e-05,117960.0,117950.0,0.82893759]
[1752646299262,8.545e-05,117960.0,117950.0,1.16583112]
[1752646305201,8.545e-05,117960.0,117950.0,1.8572655]
[1752646305862,8.545e-05,117960.0,117950.0,1.8562655]
[1752646306078,0.00208545,117960.0,117950.0,1.8552655]
[1752646306283,8.545e-05,117960.0,117950.0,1.8552655]
[1752646306472,0.00408545,117960.0,117950.0,1.8552655]
[1752646306686,0.00608545,117960.0,117950.0,1.8552655]
[1752646306889,0.00208545,117960.0,117950.0,1.8552655]
[1752646307276,0.00408545,117960.0,117950.0,1.8552655]
[1752646308630,8.545e-05,117960.0,117950.0,1.8552655]
[1752646308962,0.00808545,117960.0,117950.0,1.8552655]
[1752646309182,0.06864301,117990.0,117980.0,0.19494742]
[1752646309384,0.06872855,117990.0,117980.0,1.10037338]
[1752646309585,0.06872855,117990.0,117980.0,1.10343338]
[1752646310148,0.06872855,117990.0,117980.0,1.11883338]
[1752646310930,8.554e-05,117990.0,117980.0,1.11883338]
[1752646311767,8.554e-05,117990.0,117980.0,1.1253943]
[1752646311972,8.554e-05,117990.0,117980.0,1.1263943]
[1752646312259,8.554e-05,117990.0,117980.0,1.1293943]
[1752646316927,8.554e-05,117990.0,117980.0,0.78593985]
[1752646317066,8.554e-05,117990.0,117980.0,1.10743338]
[1752646317678,8.554e-05,117990.0,117980.0,0.77053985]
[1752646317895,8.554e-05,117990.0,117980.0,1.10743338]
[1752646319613,8.554e-05,117990.0,117980.0,0.77053985]
[1752646319855,8.554e-05,117990.0,117980.0,1.11410189]
[1752646320267,8.554e-05,117990.0,117980.0,0.77720836]
[1752646320461,8.554e-05,117990.0,117980.0,1.11410189]
[1752646320693,8.554e-05,117990.0,117980.0,1.10739338]
[1752646321526,8.554e-05,117990.0,117980.0,1.12193423]
[1752646322346,8.554e-05,117990.0,117980.0,1.10683423]
[1752646323844,8.554e-05,117990.0,117980.0,0.7699407]
[1752646324061,0.64036783,117990.0,117980.0,0.6235677]
[1752646324290,0.97726122,117990.0,117980.0,0.2975]
[1752646324508,0.96065172,117990.0,117980.0,0.2975]
[1752646325124,1.09177172,117990.0,117980.0,0.2975]
[1752646325278,1.09177172,117990.0,117980.0,0.004]
[1752646325488,1.177282,117990.0,117980.0,0.004]
[1752646326922,0.9523802,117990.0,117980.0,0.004]
[1752646328081,0.88373719,117990.0,117980.0,0.004]
[1752646338443,0.75261719,117990.0,117980.0,0.004]
[1752646338650,5.73731552,117990.0,117980.0,0.004]
[1752646338891,5.76277652,117990.0,117980.0,0.004]
[1752646339114,5.73731552,117990.0,117980.0,0.004]
[1752646339312,6.48620078,117990.0,117980.0,0.001]
[1752646339517,6.03731552,117990.0,117980.0,0.001]
[1752646339719,6.03731552,117990.0,117980.0,0.003]
[1752646340223,6.06278052,117990.0,117980.0,0.00191509]
[1752646340652,6.06378052,117990.0,117980.0,0.00191509]
[1752646340858,6.06278052,117990.0,117980.0,0.00191509]
[1752646341265,6.06378052,117990.0,117980.0,0.00191509]
[1752646342709,0.21038067,117960.0,117950.0,0.17804076]
[1752646342911,0.87639621,117960.0,117950.0,0.21565662]
[1752646344194,0.8833878,117960.0,117950.0,0.21565662]
[1752646344777,0.8833878,117960.0,117950.0,0.22513471]
[1752646345696,0.8833878,117960.0,117950.0,0.18751885]
[1752646346097,0.8833878,117960.0,117950.0,0.19051885]
[1752646346857,0.8833878,117960.0,117950.0,0.19899687]
[1752646348316,0.87491079,117960.0,117950.0,0.19899687]
[1752646349934,0.42602553,117960.0,117950.0,0.19899687]
[1752646350076,0.87491079,117960.0,117950.0,0.19899687]
[1752646350480,0.87491079,117960.0,117950.0,0.20747482]
[1752646351085,1.09955653,117960.0,117950.0,0.25481629]
[1752646351282,1.08415653,117960.0,117950.0,0.25481593]
[1752646352091,1.10111077,117960.0,117950.0,0.2548155]
[1752646352704,1.10111077,117960.0,117950.0,0.2599055]
[1752646352705,0.89913808,117960.0,117950.0,0.2599055]
[1752646352927,0.57878654,117960.0,117950.0,0.2757055]
[1752646353143,0.91555204,117960.0,117950.0,0.2757055]
[1752646353802,0.36219489,117970.0,117960.0,0.22638046]
[1752646354016,0.76523259,117970.0,117960.0,0.27755565]
[1752646355026,0.58722132,117970.0,117960.0,0.27755565]
[1752646355186,0.59569797,117970.0,117960.0,0.27755565]
[1752646355368,0.77203468,117970.0,117960.0,0.27755565]
[1752646355561,0.77203468,117970.0,117960.0,0.27955565]
[1752646355983,0.59402333,117970.0,117960.0,0.27955565]
[1752646356586,0.25725783,117970.0,117960.0,0.27955565]
[1752646356787,0.76355795,117970.0,117960.0,0.27955565]
[1752646357000,0.42679245,117970.0,117960.0,0.27955565]
[1752646357193,0.69087458,117970.0,117960.0,0.27955565]
[1752646357722,0.86888585,117970.0,117960.0,0.27955565]
[1752646358082,0.87736258,117970.0,117960.0,0.27955565]
[1752646359365,0.87736258,117970.0,117960.0,0.27107871]
[1752646359597,0.86819051,117970.0,117960.0,0.27107871]
[1752646359810,0.859714,117970.0,117960.0,0.27107885]
[1752646360089,0.859714,117970.0,117960.0,0.27955608]
[1752646360325,0.859714,117970.0,117960.0,0.26365608]
[1752646360676,0.859714,117970.0,117960.0,0.27213317]
[1752646360877,0.69017938,117970.0,117960.0,0.28061018]
[1752646361079,0.68339878,117970.0,117960.0,0.29700975]
[1752646361296,0.8529334,117970.0,117960.0,0.29700975]
[1752646361515,0.86141013,117970.0,117960.0,0.29700975]
[1752646361951,0.86141013,117970.0,117960.0,0.28853281]
[1752646362798,0.86141013,117970.0,117960.0,0.2800558]
[1752646363477,0.86835305,117970.0,117960.0,0.27157871]
[1752646363657,0.86835305,117970.0,117960.0,0.22549352]
[1752646364159,0.86835305,117970.0,117960.0,0.23397068]
[1752646365868,0.86835305,117970.0,117960.0,0.24244777]
[1752646366336,0.86835305,117970.0,117960.0,0.25092478]
[1752646369443,0.86141013,117970.0,117960.0,0.25092478]
[1752646369622,0.86141013,117970.0,117960.0,0.29685988]
[1752646372148,0.86829284,117970.0,117960.0,0.29685988]
[1752646372664,0.41939743,117970.0,117960.0,0.29685988]
[1752646372867,0.68339878,117970.0,117960.0,0.29685952]
[1752646373375,0.8529334,117970.0,117960.0,0.27142848]
[1752646373588,0.8534734,117970.0,117960.0,0.20909338]
[1752646374094,0.7224334,117970.0,117960.0,0.20909338]
[1752646374298,0.8533534,117970.0,117960.0,0.21757047]
[1752646374434,0.68381835,117970.0,117960.0,0.22604741]
[1752646375225,0.69229493,117970.0,117960.0,0.22604741]
[1752646375460,0.69229493,117970.0,117960.0,0.27111477]
[1752646375655,0.69925013,117970.0,117960.0,0.27111477]
[1752646375874,0.68327835,117970.0,117960.0,0.27111477]
[1752646376072,0.68327835,117970.0,117960.0,0.28621477]
[1752646377489,0.58081541,117970.0,117960.0,0.28621477]
[1752646377697,0.13192,117970.0,117960.0,0.28621477]
[1752646377897,0.13192,117970.0,117960.0,0.41713477]
[1752646378545,0.14039608,117970.0,117960.0,0.41713477]
[1752646378973,0.1488723,117970.0,117960.0,0.41713477]
[1752646379180,0.47702799,117970.0,117960.0,0.41713477]
[1752646379383,0.33763191,117970.0,117960.0,0.41713477]
[1752646380451,0.34610799,117970.0,117960.0,0.41713477]
[1752646380664,0.33763191,117970.0,117960.0,0.41713477]
[1752646381718,0.001,117970.0,117960.0,0.41713477]
[1752646382263,0.001,117970.0,117960.0,0.42413186]
[1752646383021,0.50011008,117980.0,117970.0,0.22676393]
[1752646383170,0.50011008,117980.0,117970.0,0.24264271]
[1752646383366,0.47468378,117980.0,117970.0,0.24264271]
[1752646383572,0.48315914,117980.0,117970.0,0.24264271]
[1752646383778,0.49163465,117980.0,117970.0,0.24264271]
[1752646383980,0.48315914,117980.0,117970.0,0.24264271]
[1752646384361,0.48315914,117980.0,117970.0,0.24364271]
[1752646384970,0.47468378,117980.0,117970.0,0.24364271]
[1752646385148,0.47425588,117980.0,117970.0,0.24564271]
[1752646386333,0.46712401,117980.0,117970.0,0.24564271]
[1752646391334,0.32597929,117980.0,117970.0,0.18613127]
[1752646391582,1.35945103,117980.0,117970.0,0.18948785]
[1752646391783,1.38315336,117980.0,117970.0,0.19796429]
[1752646391988,1.38315336,117980.0,117970.0,0.18101127]
[1752646392195,1.01434369,117980.0,117970.0,0.18948785]
[1752646392759,1.00586804,117980.0,117970.0,0.18948785]
[1752646393979,1.00586804,117980.0,117970.0,0.18101127]
[1752646394174,1.00586804,117980.0,117970.0,0.003]
[1752646394419,0.99739218,117980.0,117970.0,0.003]
[1752646395206,0.85180008,117980.0,117970.0,0.003]
[1752646395544,0.98304008,117980.0,117970.0,0.003]
[1752646395982,0.98304008,117980.0,117970.0,0.01147673]
[1752646396192,0.98304008,117980.0,117970.0,0.003]
[1752646396345,0.97456407,117980.0,117970.0,0.003]
[1752646397382,1.00018633,117980.0,117970.0,0.003]
[1752646398894,1.08569661,117980.0,117970.0,0.003]
[1752646399665,1.06007435,117980.0,117970.0,0.003]
[1752646400450,1.06007435,117980.0,117970.0,0.17253462]
[1752646400660,1.06007435,117980.0,117970.0,0.23906904]
[1752646400822,1.06007435,117980.0,117970.0,0.18408135]
[1752646401599,1.06007435,117980.0,117970.0,0.01454673]
[1752646402738,1.06007435,117980.0,117970.0,0.20103451]
[1752646404001,1.06855021,117980.0,117970.0,0.21753451]
[1752646404241,1.06855021,117980.0,117970.0,0.27260223]
[1752646404873,1.06855021,117980.0,117970.0,0.20058135]
[1752646405095,1.06855021,117980.0,117970.0,0.18408135]
[1752646405361,1.06855021,117980.0,117970.0,0.18101135]
[1752646405607,1.07517435,117980.0,117970.0,0.003]
[1752646406791,1.06007435,117980.0,117970.0,0.003]
[1752646410037,1.06007435,117980.0,117970.0,0.18101135]
[1752646410245,1.06007435,117980.0,117970.0,0.22571815]
[1752646410499,1.06007435,117980.0,117970.0,0.00607]
[1752646412022,1.06007435,117980.0,117970.0,0.003]
[1752646415112,0.38681053,117980.0,117970.0,0.003]
[1752646415230,1.06007435,117980.0,117970.0,0.003]
[1752646415886,1.06007435,117980.0,117970.0,0.18408135]
[1752646416128,1.06007435,117980.0,117970.0,0.22602515]
[1752646416401,1.06007435,117980.0,117970.0,0.23450173]
[1752646416641,0.38681053,117980.0,117970.0,0.24297824]
[1752646416899,1.06007435,117980.0,117970.0,0.25937824]
[1752646417570,1.06007435,117980.0,117970.0,0.25090173]
[1752646417791,1.06007435,117980.0,117970.0,0.24242515]
[1752646418709,1.06007435,117980.0,117970.0,0.2509018]
[1752646419071,1.06007435,117980.0,117970.0,0.24242515]
[1752646419291,7.29206032,117980.0,117970.0,0.003]
[1752646420250,7.29206032,117980.0,117970.0,0.001]
[1752646420973,0.19501354,117940.0,117930.0,0.0637096]
[1752646421182,0.19501354,117940.0,117930.0,0.05728]
[1752646421183,0.7755673,117940.0,117930.0,0.05728]
[1752646421398,0.78404618,117940.0,117930.0,0.27376415]
[1752646421824,0.79126789,117940.0,117930.0,0.27376429]
[1752646422030,0.79126789,117940.0,117930.0,0.28224382]
[1752646422260,0.7755673,117940.0,117930.0,0.29122808]
[1752646422468,0.7755673,117940.0,117930.0,0.29970747]
[1752646422690,0.32641354,117940.0,117930.0,0.30170747]
[1752646422898,0.32641347,117940.0,117930.0,0.31018671]
[1752646423330,0.78404604,117940.0,117930.0,0.30170747]
[1752646423543,0.79252492,117940.0,117930.0,0.29322808]
[1752646423754,0.78404654,117940.0,117930.0,0.10967696]
[1752646424332,0.78404654,117940.0,117930.0,0.11815649]
[1752646424951,0.79134496,117940.0,117930.0,0.28774862]
[1752646425432,0.79134496,117940.0,117930.0,0.28774855]
[1752646425662,0.79134496,117940.0,117930.0,0.27926909]
[1752646426285,0.79134496,117940.0,117930.0,0.10119736]
[1752646426494,0.78286636,117940.0,117930.0,0.10119736]
[1752646426721,0.77492762,117940.0,117930.0,0.06427736]
[1752646427131,0.8604379,117940.0,117930.0,0.0258648]
[1752646427986,0.8604379,117940.0,117930.0,0.0238648]
[1752646428186,0.8604379,117940.0,117930.0,0.0218648]
[1752646428630,0.8758379,117940.0,117930.0,0.0238648]
[1752646429066,0.8604379,117940.0,117930.0,0.0238648]
[1752646430998,0.8604379,117940.0,117930.0,0.02987628]
[1752646431205,0.8604379,117940.0,117930.0,0.03302628]
[1752646431613,0.8604379,117940.0,117930.0,0.0238648]
[1752646432217,0.8918379,117940.0,117930.0,0.0238648]
[1752646433776,0.8604379,117940.0,117930.0,0.0238648]
[1752646435474,0.8770379,117940.0,117930.0,0.0238648]
[1752646438852,0.8930379,117940.0,117930.0,0.0238648]
[1752646440043,0.8930379,117940.0,117930.0,0.0218648]
[1752646440895,0.8930379,117940.0,117930.0,0.0208648]
[1752646441417,0.8940379,117940.0,117930.0,0.0208648]
[1752646441629,0.8940379,117940.0,117930.0,0.0218648]
[1752646442850,0.8780379,117940.0,117930.0,0.0218648]
[1752646444495,0.8935779,117940.0,117930.0,0.0218648]
[1752646445949,1.2335779,117940.0,117930.0,0.0218648]
[1752646446850,1.2332379,117940.0,117930.0,0.0218648]
[1752646450772,1.2180379,117940.0,117930.0,0.0218648]
[1752646455038,1.77980818,117940.0,117930.0,0.0218648]
[1752646457849,1.76320818,117940.0,117930.0,0.0218648]
[1752646460667,1.79350818,117940.0,117930.0,0.0218648]
[1752646461302,1.81897918,117940.0,117930.0,0.0218648]
[1752646461517,1.80367918,117940.0,117930.0,0.0218648]
[1752646464562,7.43022117,117940.0,117930.0,0.0218648]
[1752646464759,7.34446155,117940.0,117930.0,0.0218648]
[1752646465937,7.34446155,117940.0,117930.0,0.0208648]
[1752646466572,7.34346155,117940.0,117930.0,0.0208648]
[1752646467908,7.64346155,117940.0,117930.0,0.0208648]
[1752646468121,3.15554555,117940.0,117930.0,0.0208648]
[1752646468325,7.69905393,117940.0,117930.0,0.0208648]
[1752646469366,7.69705393,117940.0,117930.0,0.0208648]
[1752646469571,7.70005393,117940.0,117930.0,0.0208648]
[1752646473354,3.21013793,117940.0,117930.0,0.0208648]
[1752646473587,7.70005393,117940.0,117930.0,0.0208648]
[1752646474105,7.64646155,117940.0,117930.0,0.0208648]
[1752646483509,5.62461347,117940.0,117930.0,0.0208648]
[1752646483721,7.64646155,117940.0,117930.0,0.0208648]
[1752646485177,7.6610024,117940.0,117930.0,0.0208648]
[1752646485379,7.63730007,117940.0,117930.0,1e-08]
[1752646485568,7.74676202,117940.0,117930.0,1e-08]
[1752646487670,7.6610024,117940.0,117930.0,1e-08]
[1752646489796,3.1710864,117940.0,117930.0,1e-08]
[1752646489945,7.6610024,117940.0,117930.0,1e-08]
[1752646493050,7.7110024,117940.0,117930.0,1e-08]
[1752646495212,0.66807159,117930.0,117920.0,1e-08]
[1752646495415,7.5390479,117930.0,117920.0,0.00015112]
[1752646496344,7.5645289,117930.0,117920.0,0.00015112]
[1752646496921,2.98885328,117930.0,117920.0,0.00015112]
[1752646497158,6.35613438,117930.0,117920.0,0.00015112]
[1752646497327,6.35613438,117930.0,117920.0,0.00319112]
[1752646497328,6.1832729,117930.0,117920.0,0.00319112]
[1752646497529,6.4648329,117930.0,117920.0,0.00015112]
[1752646497729,6.4668329,117930.0,117920.0,0.00015112]
[1752646498569,6.55259252,117930.0,117920.0,0.00015112]
[1752646500350,6.3352729,117930.0,117920.0,0.03708112]
[1752646500555,6.30167205,117930.0,117920.0,0.03708112]
[1752646500689,6.45163205,117930.0,117920.0,0.03708112]
[1752646500898,5.85206546,117930.0,117920.0,0.03708112]